fUSD/lending_fUSD_20240426
["ID","MTS","AMOUNT","RATE_DAILY","PERIOD"]
[323687003,1714164663249,-1725.75,0.00011506,2]
[323687004,1714164663258,-500.0,0.00011506,2]
[323687005,1714164663268,-505.35,0.00011506,2]
[323687006,1714164663278,-16818.38,0.00011506,2]
[323687007,1714164663289,-500.0,0.00011506,2]
[323687008,1714164663300,-500.0,0.00011506,2]
[323687009,1714164663310,-4623.39,0.00011506,2]
[323687010,1714164663320,-500.0,0.00011506,2]
[323687011,1714164663330,-177.11770342,0.00011506,2]
[323687012,1714164663342,-743.62,0.00011506,2]
[323687013,1714164663353,-4732.66,0.00011506,2]
[323687014,1714164663363,-500.0,0.00011506,2]
[323687015,1714164663374,-500.0,0.00011506,2]
[323687016,1714164663385,-819.19,0.00011506,2]
[323687017,1714164663396,-2904.2,0.00011506,2]
[323687018,1714164663407,-568.79,0.00011506,2]
[323687019,1714164663417,-500.0,0.00011506,2]
[323687020,1714164663429,-2745.33,0.00011506,2]
[323687021,1714164663439,-1893.89,0.00011506,2]
[323687022,1714164663450,-500.0,0.00011506,2]
[323687023,1714164663461,-188.093282,0.00011506,2]
[323687024,1714164663471,-3011.35,0.00011506,2]
[323687025,1714164663480,-500.0,0.00011506,2]
[323687026,1714164663489,-500.0,0.00011506,2]
[323687027,1714164663499,-500.0,0.00011506,2]
[323687028,1714164663509,-500.0,0.00011506,2]
[323687029,1714164663521,-500.0,0.00011506,2]
[323687030,1714164663531,-655.87058316,0.00011506,2]
[323687031,1714164663610,-276.65047635,0.00011506,2]
[323687032,1714164663622,-1334.65894049,0.00011506,2]
[323687033,1714164663632,-2629.82,0.00011506,2]
[323687034,1714164663641,-500.0,0.00011506,2]
[323687035,1714164663650,-1211.38,0.00011506,2]
[323687036,1714164663660,-500.0,0.00011506,2]
[323687037,1714164663671,-745.67,0.00011506,2]
[323687038,1714164663681,-971.13,0.00011506,2]
[323687039,1714164663691,-500.0,0.00011506,2]
[323687040,1714164663701,-1603.09,0.00011506,2]
[323687041,1714164663711,-563.8,0.00011506,2]
[323687042,1714164663721,-974.87,0.00011506,2]
[323687043,1714164663731,-500.0,0.00011506,2]
[323687044,1714164663742,-2773.39,0.00011506,2]
[323687045,1714164663751,-500.0,0.00011506,2]
[323687046,1714164663762,-1522.95,0.00011506,2]
[323687047,1714164663772,-5896.76,0.00011506,2]
[323687048,1714164663784,-1224.21,0.00011506,2]
[323687049,1714164663794,-572.71596926,0.00011506,2]
[323687050,1714164663805,-500.0,0.00011506,2]
[323687051,1714164663814,-500.0,0.00011506,2]
[323687052,1714164663825,-501.86,0.00011506,2]
[323687053,1714164663836,-500.0,0.00011506,2]
[323687054,1714164663846,-955.97,0.00011506,2]
[323687055,1714164663856,-1294.68,0.00011506,2]
[323687056,1714164663866,-1486.19243815,0.00011506,2]
[323687057,1714164663878,-435.67082283,0.00011506,2]
[323687058,1714164663910,-653.23673902,0.00011506,2]
[323687059,1714164663919,-306.76326098,0.00011506,2]
[323687060,1714164663931,-593.78943337,0.00011506,2]
[323687061,1714164664586,-270.42738461,0.00010958,2]
[323687062,1714164664606,-229.57261539,0.00010958,2]
[323687063,1714164664616,-533.55,0.00010958,2]
[323687064,1714164664627,-1004.37845628,0.00011506,2]
[323687065,1714164664640,-256.05884937,0.00011506,2]
[323687066,1714164664651,-1931.55,0.00011506,2]
[323687067,1714164664661,-1653.29,0.00011506,2]
[323687068,1714164664672,-500.0,0.00011506,2]
[323687069,1714164664682,-8.11615971,0.00011506,2]
[323687070,1714164664703,-500.0,0.00010958,2]
[323687071,1714164664714,-491.88384029,0.00011506,2]
[323687072,1714164664724,-1835.98,0.00011506,2]
[323687073,1714164664735,-2886.79,0.00011506,2]
[323687074,1714164664746,-666.84615971,0.00011506,2]
[323687075,1714164664760,-20.23384029,0.00011506,2]
[323687076,1714164664769,-500.0,0.00011506,2]
[323687077,1714164664780,-346.4388044,0.00011506,2]
[323687078,1714164664811,-153.5611956,0.00011506,2]
[323687079,1714164664821,-234.77480436,0.00011506,2]
[323687080,1714164664833,-764.3827112,0.00011506,2]
[323687081,1714164665181,-1850.25890307,0.00010957,2]
[323687082,1714164665194,-667.0664,0.00010957,2]
[323687083,1714164665218,-404.4192757,0.00010957,2]
[323687084,1714164665510,-729.0,0.00010957,2]
[323687085,1714164665522,-762.58582215,0.00010957,2]
[323687086,1714164665548,-8553.80768831,0.00010957,2]
[323687087,1714164665560,-2362.176004,0.00010957,2]
[323687088,1714164665573,-2000.81106848,0.00010957,2]
[323687089,1714164665585,-3365.20411288,0.00010957,2]
[323687090,1714164665598,-2079.24876205,0.00010957,2]
[323687091,1714164665608,-100.17847805,0.00010958,2]
[323687092,1714164665634,-897.25447,0.00010958,2]
[323687093,1714164665646,-1204.94705195,0.00010958,2]
[323687094,1714164665656,-68.95294805,0.00010958,2]
[323687095,1714164665668,-431.04705195,0.00010958,2]
[323687096,1714164665680,-176.92428828,0.00010958,2]
[323687097,1714164665806,-323.07571172,0.00010958,2]
[323687098,1714164665817,-118.92618181,0.00011232,2]
[323687099,1714164665840,-2083.45381819,0.00011232,2]
[323687100,1714164665851,-500.0,0.00011232,2]
[323687101,1714164665861,-83.99248444,0.00011506,2]
[323687102,1714164665872,-500.0,0.00011506,2]
[323687103,1714164665882,-475.40389783,0.00011506,2]
[323687104,1714164665894,-310.0765343,0.00011506,2]
[323687123,1714165367514,-262.37214807,8.502e-05,2]
[323687124,1714165368119,-288.14967252,8.502e-05,2]
[323687125,1714165368542,-281.82418706,8.502e-05,2]
[323687126,1714165368987,-271.09618282,8.502e-05,2]
[323687127,1714165369419,-30.86167824,8.502e-05,2]
[323687128,1714165369445,-210.67786012,8.502e-05,2]
[323687129,1714165373176,-192.81318554,8.502e-05,2]
[323687130,1714165386306,-194.45974608,8.502e-05,2]
[323687131,1714165399485,-155.0,8.502e-05,2]
[323687132,1714165404734,-155.0,8.502e-05,2]
[323687138,1714165439745,390.89,8.219e-05,2]
[323687139,1714165472631,-240.08167513,8.502e-05,2]
[323687140,1714165473229,-253.12937871,8.502e-05,2]
[323687141,1714165499140,408459.10741045,8.219e-05,2]
[323687142,1714165527819,-46.24315617,8.502e-05,2]
[323687143,1714165527841,-103.75684383,8.502e-05,2]
[323687144,1714165528329,-150.0,8.502e-05,2]
[323687145,1714165528992,-150.0,8.502e-05,2]
[323687146,1714165529477,-150.0,8.502e-05,2]
[323687147,1714165534349,155.0,8.501e-05,2]
[323687148,1714165535710,167.4194243,8.501e-05,2]
[323687149,1714165539842,257.49330705,8.219e-05,2]
[323687150,1714165540861,9091.75386871,8.219e-05,2]
[323687151,1714165550073,-130.6419886,8.502e-05,2]
[323687152,1714165550095,-19.3580114,8.502e-05,2]
[323687153,1714165550602,-150.0,8.502e-05,2]
[323687154,1714165551156,-150.0,8.502e-05,2]
[323687155,1714165552433,-150.0,8.502e-05,2]
[323687156,1714165553075,-150.0,8.502e-05,2]
[323687157,1714165553708,-150.0,8.502e-05,2]
[323687158,1714165554261,-150.0,8.502e-05,2]
[323687159,1714165554696,-150.0,8.502e-05,2]
[323687160,1714165554798,216.11869752,8.501e-05,2]
[323687161,1714165555147,-150.0,8.502e-05,2]
[323687162,1714165555633,-150.0,8.502e-05,2]
[323687163,1714165555829,335.7592545,8.219e-05,2]
[323687164,1714165556091,-150.0,8.502e-05,2]
[323687165,1714165556540,-150.0,8.502e-05,2]
[323687166,1714165557426,-150.0,8.502e-05,2]
[323687167,1714165557945,-150.0,8.502e-05,2]
[323687168,1714165558405,-150.0,8.502e-05,2]
[323687169,1714165558809,-150.0,8.502e-05,2]
[323687170,1714165559329,-150.0,8.502e-05,2]
[323687171,1714165559882,-150.0,8.502e-05,2]
[323687172,1714165561887,150.0,8.501e-05,2]
[323687173,1714165562439,-150.0,8.502e-05,2]
[323687174,1714165563070,-150.0,8.502e-05,2]
[323687175,1714165563515,-150.0,8.502e-05,2]
[323687176,1714165565303,450.0,8.219e-05,2]
[323687177,1714165567277,-150.0,8.502e-05,2]
[323687178,1714165567727,-150.0,8.502e-05,2]
[323687179,1714165571056,300.0,8.219e-05,2]
[323687180,1714165572878,900.0,8.219e-05,2]
[323687181,1714165573068,155.0,8.501e-05,2]
[323687182,1714165573367,2216.26019612,8.501e-05,2]
[323687183,1714165573821,300.0,8.219e-05,2]
[323687184,1714165575066,678.80923057,8.219e-05,2]
[323687185,1714165575274,363.35615839,8.501e-05,2]
[323687186,1714165577887,2216.26019612,8.501e-05,2]
[323687187,1714165580476,3414.39160666,8.501e-05,2]
[323687188,1714165597610,22774.57803664,8.501e-05,2]
[323687200,1714165629971,408.57453561,8.501e-05,2]
[323687210,1714165647393,4413.09771635,8.501e-05,2]
[323687211,1714165647493,22470.75651928,8.501e-05,2]
[323687212,1714165685219,210.67786012,8.501e-05,2]
[323687219,1714165711961,194.45974608,8.501e-05,2]
[323687221,1714165741980,150.0,8.501e-05,2]
[323687222,1714165747711,155.0,8.501e-05,2]
[323687245,1714165809836,2011.4748814,8.501e-05,2]
[323687267,1714165831443,-1451.45000021,8.502e-05,2]
[323687268,1714165831456,-826.3254998,8.502e-05,2]
[323687269,1714165831471,-29670.43960944,8.502e-05,2]
[323687270,1714165831481,-4146.07276563,8.549e-05,2]
[323687271,1714165831492,-964.87457627,8.997e-05,2]
[323687272,1714165831504,-250.0,8.999e-05,2]
[323687273,1714165831515,-177.55,9.125e-05,2]
[323687274,1714165831526,-234.72,9.168e-05,2]
[323687275,1714165831537,-170.7,9.168e-05,2]
[323687276,1714165831546,-2458.37,9.201e-05,2]
[323687277,1714165831556,-23900.0,9.211e-05,2]
[323687278,1714165831565,-150.0,9.351e-05,2]
[323687279,1714165831575,-200.0,9.398e-05,2]
[323687280,1714165831584,-500.0,9.407e-05,2]
[323687281,1714165831594,-841.6,9.414e-05,2]
[323687282,1714165831603,-356.72,9.67e-05,2]
[323687283,1714165831612,-1809.29,9.67e-05,2]
[323687284,1714165831622,-150.99,9.67e-05,2]
[323687285,1714165831631,-2162.2,9.67e-05,2]
[323687286,1714165831640,-13229.11,9.67e-05,2]
[323687287,1714165831649,-150.99,9.67e-05,2]
[323687288,1714165831659,-150.99,9.67e-05,2]
[323687289,1714165831668,-499.99,9.67e-05,2]
[323687290,1714165831677,-1253.55806224,9.876e-05,2]
[323687291,1714165831687,-1253.55806223,9.876e-05,2]
[323687292,1714165831696,-178.06,9.922e-05,2]
[323687293,1714165831706,-1352.02412604,9.998e-05,2]
[323687294,1714165831715,-204.03131332,0.0001,2]
[323687295,1714165831724,-787.42007613,0.00010156,2]
[323687296,1714165831734,-2135.34001753,0.00010158,2]
[323687297,1714165831744,-1771.8047,0.00010162,2]
[323687298,1714165831753,-220.27,0.00010205,2]
[323687299,1714165831763,-390.89,0.00010424,2]
[323687300,1714165831771,-841.6,0.00010591,2]
[323687301,1714165831780,-3715.30474019,0.000107,2]
[323687303,1714165831789,-155.64340388,0.00010736,2]
[323687305,1714165831799,-4839.60214994,0.00010746,2]
[323687306,1714165831809,-646.65548626,0.00010855,2]
[323687307,1714165831819,-209.99236181,0.00010855,2]
[323687308,1714165831831,-2202.59161532,0.00010855,2]
[323687310,1714165831840,-1029.67189584,0.00010855,2]
[323687312,1714165831849,-164.0271218,0.00010855,2]
[323687314,1714165831860,-201.70925852,0.00010855,2]
[323687316,1714165831869,-296.36987133,0.00010855,2]
[323687318,1714165831879,-155.0,0.00010856,2]
[323687319,1714165831889,-362.66162767,0.00010856,2]
[323687321,1714165831899,-2500.0,0.00010857,2]
[323687323,1714165831910,-174.27566945,0.00010858,2]
[323687324,1714165831920,-266.31372902,0.00010858,2]
[323687325,1714165831930,-155.0,0.000109,2]
[323687326,1714165831940,-158.47920802,0.00010952,2]
[323687327,1714165831950,-315.28299922,0.00010953,2]
[323687328,1714165831959,-410155.40733934,0.00010954,2]
[323687329,1714165831972,-65861.79382598,0.00010954,2]
[323687330,1714165831985,-427.34999358,0.00010954,2]
[323687331,1714165832000,-367.39999985,0.00010954,2]
[323687332,1714165832012,-490.0,0.00010954,2]
[323687333,1714165832024,-423.02988,0.00010954,2]
[323687334,1714165832036,-378.73,0.00010954,2]
[323687335,1714165832049,-1057.6,0.00010954,2]
[323687336,1714165832061,-432.13597191,0.00010954,2]
[323687337,1714165832072,-290.0,0.00010954,2]
[323687338,1714165832083,-380.54,0.00010954,2]
[323687339,1714165832095,-1962.53935742,0.00010954,2]
[323687340,1714165832107,-5450.93999964,0.00010954,2]
[323687341,1714165832119,-789.29286824,0.00010954,2]
[323687342,1714165832147,-363.76455997,0.00010954,2]
[323687343,1714165832158,-702.13739251,0.00010954,2]
[323687344,1714165832171,-5737.5,0.00010954,2]
[323687345,1714165832182,-748.80304712,0.00010954,2]
[323687346,1714165832194,-11941.32622673,0.00010954,2]
[323687347,1714165832209,-779.28,0.00010954,2]
[323687348,1714165832224,-4047.62830917,0.00010954,2]
[323687349,1714165832239,-1746.28935868,0.00010954,2]
[323687350,1714165832253,-5303.3560839,0.00010954,2]
[323687351,1714165832267,-333.0,0.00010954,2]
[323687352,1714165832281,-1399.99999996,0.00010954,2]
[323687353,1714165832317,-553.68213634,0.00010954,2]
[323687354,1714165832330,-417.27522362,0.00010954,2]
[323687355,1714165832343,-5741.76834967,0.00010954,2]
[323687356,1714165832357,-126022.00000003,0.00010954,2]
[323687357,1714165832370,-4480.79283856,0.00010954,2]
[323687358,1714165832381,-8945.45338396,0.00010954,2]
[323687359,1714165832393,-4050.0,0.00010954,2]
[323687360,1714165832405,-1497.07238,0.00010954,2]
[323687404,1714165837648,-1991.8596,8.549e-05,2]
[323687406,1714165837658,-235.75286625,0.00010954,2]
[323687408,1714165837670,-2227.68,0.00010954,2]
[323687410,1714165837685,-380.04,0.00010954,2]
[323687419,1714165837894,-2724.0,0.00010954,2]
[323687420,1714165837915,-7304.31434844,0.00010954,2]
[323687421,1714165837924,-533.67271647,0.00010955,2]
[323687422,1714165837933,-5088.90360486,0.00010955,2]
[323687424,1714165837943,-309.89472683,0.00010955,2]
[323687425,1714165837952,-262.08427919,0.00010955,2]
[323687426,1714165837961,-306.31282982,0.00010955,2]
[323687427,1714165837970,-155.0,0.00010955,2]
[323687428,1714165837980,-211.83191101,0.00010955,2]
[323687429,1714165837989,-177.72918165,0.00010955,2]
[323687430,1714165837999,-1001.56124984,0.00010955,2]
[323687431,1714165838010,-1292.97164343,0.00010955,2]
[323687432,1714165838019,-781.26841583,0.00010955,2]
[323687433,1714165838030,-234.92932396,0.00010955,2]
[323687434,1714165838040,-190.61689936,0.00010955,2]
[323687435,1714165838050,-571.17879386,0.00010955,2]
[323687437,1714165838060,-167.31550311,0.00010955,2]
[323687439,1714165838070,-155.3047756,0.00010955,2]
[323687441,1714165838080,-682.66084437,0.00010955,2]
[323687442,1714165838089,-215.98548558,0.00010955,2]
[323687443,1714165838100,-408.41994515,0.00010955,2]
[323687444,1714165838110,-1878.64116905,0.00010955,2]
[323687445,1714165838120,-158.3969132,0.00010955,2]
[323687446,1714165838130,-155.0,0.00010956,2]
[323687447,1714165838139,-4583.95003129,0.00010956,2]
[323687448,1714165838151,-155.0,0.00010956,2]
[323687449,1714165838163,-2179.97190532,0.00010956,2]
[323687450,1714165838174,-190.99719088,0.00010956,2]
[323687451,1714165838183,-239.42240212,0.00010956,2]
[323687452,1714165838193,-155.96289677,0.00010956,2]
[323687453,1714165838204,-155.0,0.00010956,2]
[323687454,1714165838214,-260.9976854,0.00010956,2]
[323687455,1714165838226,-990.62994113,0.00010956,2]
[323687456,1714165838236,-189.71207442,0.00010956,2]
[323687457,1714165838247,-264.01498696,0.00010956,2]
[323687458,1714165838260,-155.0,0.00010956,2]
[323687459,1714165838272,-174.12211115,0.00010956,2]
[323687460,1714165838282,-156.45340642,0.00010956,2]
[323687461,1714165838292,-325.67432968,0.00010956,2]
[323687462,1714165838304,-9631.5048199,0.00010956,2]
[323687463,1714165838315,-155.0,0.00010956,2]
[323687464,1714165838325,-156.09166343,0.00010956,2]
[323687465,1714165838334,-155.2599321,0.00010956,2]
[323687466,1714165838343,-703.7365253,0.00010956,2]
[323687467,1714165838356,-155.0,0.00010956,2]
[323687468,1714165838366,-155.51813378,0.00010956,2]
[323687469,1714165838376,-155.56538191,0.00010956,2]
[323687470,1714165838386,-200.71980777,0.00010956,2]
[323687471,1714165838396,-236.56224941,0.00010957,2]
[323687472,1714165838404,-501.42867605,0.00010958,2]
[323687473,1714165838414,-500.0,0.00010958,2]
[323687474,1714165838424,-500.0,0.00010958,2]
[323687475,1714165838433,-500.0,0.00010958,2]
[323687476,1714165838443,-432.48267008,0.00010958,2]
[323687477,1714165838456,-500.0,0.00010958,2]
[323687478,1714165838470,-500.0,0.00010958,2]
[323687479,1714165838484,-500.0,0.00010958,2]
[323687480,1714165838497,-500.0,0.00010958,2]
[323687481,1714165838515,-450.0,0.00010958,2]
[323687482,1714165838529,-500.0,0.00010958,2]
[323687483,1714165838542,-500.0,0.00010958,2]
[323687484,1714165838554,-500.0,0.00010958,2]
[323687485,1714165838568,-500.0,0.00010958,2]
[323687486,1714165838580,-500.0,0.00010958,2]
[323687487,1714165838592,-229.31355876,0.00010958,2]
[323687488,1714165838606,-500.0,0.00010958,2]
[323687489,1714165838619,-500.0,0.00010958,2]
[323687490,1714165838633,-500.0,0.00010958,2]
[323687491,1714165838647,-500.0,0.00010958,2]
[323687492,1714165838660,-500.0,0.00010958,2]
[323687493,1714165838673,-500.0,0.00010958,2]
[323687494,1714165838685,-500.0,0.00010958,2]
[323687495,1714165838697,-500.0,0.00010958,2]
[323687496,1714165838709,-500.0,0.00010958,2]
[323687497,1714165838720,-500.0,0.00010958,2]
[323687498,1714165838733,-500.0,0.00010958,2]
[323687499,1714165838746,-500.0,0.00010958,2]
[323687500,1714165838760,-500.0,0.00010958,2]
[323687501,1714165838773,-500.0,0.00010958,2]
[323687502,1714165838786,-500.0,0.00010958,2]
[323687503,1714165838798,-500.0,0.00010958,2]
[323687504,1714165838811,-500.0,0.00010958,2]
[323687505,1714165838824,-500.0,0.00010958,2]
[323687506,1714165838837,-500.0,0.00010958,2]
[323687507,1714165838849,-500.0,0.00010958,2]
[323687508,1714165838863,-500.0,0.00010958,2]
[323687509,1714165838874,-500.0,0.00010958,2]
[323687510,1714165838886,-500.0,0.00010958,2]
[323687511,1714165838899,-500.0,0.00010958,2]
[323687512,1714165838911,-500.0,0.00010958,2]
[323687513,1714165838925,-500.0,0.00010958,2]
[323687514,1714165838936,-500.0,0.00010958,2]
[323687515,1714165838948,-500.0,0.00010958,2]
[323687516,1714165838959,-500.0,0.00010958,2]
[323687517,1714165838972,-500.0,0.00010958,2]
[323687518,1714165838985,-500.0,0.00010958,2]
[323687519,1714165838999,-500.0,0.00010958,2]
[323687520,1714165839012,-500.0,0.00010958,2]
[323687521,1714165839022,-500.0,0.00010958,2]
[323687522,1714165839033,-500.0,0.00010958,2]
[323687523,1714165839046,-500.0,0.00010958,2]
[323687524,1714165839058,-500.0,0.00010958,2]
[323687525,1714165839070,-500.0,0.00010958,2]
[323687526,1714165839081,-500.0,0.00010958,2]
[323687527,1714165839094,-500.0,0.00010958,2]
[323687528,1714165839105,-500.0,0.00010958,2]
[323687529,1714165839117,-500.0,0.00010958,2]
[323687530,1714165839130,-500.0,0.00010958,2]
[323687531,1714165839140,-500.0,0.00010958,2]
[323687532,1714165839150,-500.0,0.00010958,2]
[323687533,1714165839159,-500.0,0.00010958,2]
[323687534,1714165839169,-500.0,0.00010958,2]
[323687535,1714165839180,-500.0,0.00010958,2]
[323687536,1714165839194,-500.0,0.00010958,2]
[323687537,1714165839207,-500.0,0.00010958,2]
[323687538,1714165839219,-500.0,0.00010958,2]
[323687540,1714165839230,-500.0,0.00010958,2]
[323687541,1714165839241,-500.0,0.00010958,2]
[323687542,1714165839253,-500.0,0.00010958,2]
[323687543,1714165839263,-500.0,0.00010958,2]
[323687544,1714165839276,-500.0,0.00010958,2]
[323687545,1714165839285,-500.0,0.00010958,2]
[323687546,1714165839295,-500.0,0.00010958,2]
[323687547,1714165839306,-500.0,0.00010958,2]
[323687548,1714165839318,-500.0,0.00010958,2]
[323687549,1714165839332,-500.0,0.00010958,2]
[323687552,1714165839342,-500.0,0.00010958,2]
[323687554,1714165839354,-500.0,0.00010958,2]
[323687555,1714165839365,-500.0,0.00010958,2]
[323687556,1714165839375,-500.0,0.00010958,2]
[323687557,1714165839386,-500.0,0.00010958,2]
[323687559,1714165839396,-500.0,0.00010958,2]
[323687560,1714165839406,-500.0,0.00010958,2]
[323687561,1714165839417,-184.60316647,0.00010958,2]
[323687562,1714165839428,-500.0,0.00010958,2]
[323687563,1714165839439,-500.0,0.00010958,2]
[323687564,1714165839450,-500.0,0.00010958,2]
[323687565,1714165839460,-500.0,0.00010958,2]
[323687566,1714165839471,-500.0,0.00010958,2]
[323687567,1714165839481,-500.0,0.00010958,2]
[323687568,1714165839492,-500.0,0.00010958,2]
[323687569,1714165839502,-500.0,0.00010958,2]
[323687570,1714165839513,-199.80761126,0.00010958,2]
[323687571,1714165839523,-500.0,0.00010958,2]
[323687572,1714165839534,-500.0,0.00010958,2]
[323687573,1714165839544,-500.0,0.00010958,2]
[323687574,1714165839554,-500.0,0.00010958,2]
[323687575,1714165839565,-500.0,0.00010958,2]
[323687576,1714165839575,-500.0,0.00010958,2]
[323687577,1714165839586,-500.0,0.00010958,2]
[323687578,1714165839596,-500.0,0.00010958,2]
[323687579,1714165839607,-500.0,0.00010958,2]
[323687580,1714165839618,-500.0,0.00010958,2]
[323687581,1714165839629,-500.0,0.00010958,2]
[323687582,1714165839639,-500.0,0.00010958,2]
[323687583,1714165839651,-500.0,0.00010958,2]
[323687584,1714165839661,-500.0,0.00010958,2]
[323687585,1714165839671,-500.0,0.00010958,2]
[323687586,1714165839682,-500.0,0.00010958,2]
[323687587,1714165839692,-500.0,0.00010958,2]
[323687588,1714165839703,-500.0,0.00010958,2]
[323687589,1714165839714,-500.0,0.00010958,2]
[323687590,1714165839724,-500.0,0.00010958,2]
[323687591,1714165839735,-500.0,0.00010958,2]
[323687592,1714165839745,-500.0,0.00010958,2]
[323687593,1714165839758,-500.0,0.00010958,2]
[323687594,1714165839768,-500.0,0.00010958,2]
[323687595,1714165839778,-500.0,0.00010958,2]
[323687596,1714165839789,-500.0,0.00010958,2]
[323687597,1714165839799,-500.0,0.00010958,2]
[323687598,1714165839810,-500.0,0.00010958,2]
[323687599,1714165839821,-500.0,0.00010958,2]
[323687600,1714165839832,-500.0,0.00010958,2]
[323687601,1714165839843,-504.92211818,0.00010958,2]
[323687602,1714165839854,-500.0,0.00010958,2]
[323687603,1714165839865,-500.0,0.00010958,2]
[323687604,1714165839876,-500.0,0.00010958,2]
[323687605,1714165839887,-500.0,0.00010958,2]
[323687606,1714165839898,-500.0,0.00010958,2]
[323687607,1714165839909,-500.0,0.00010958,2]
[323687608,1714165839919,-500.0,0.00010958,2]
[323687609,1714165839930,-615.87,0.00010958,2]
[323687610,1714165839941,-500.0,0.00010958,2]
[323687611,1714165839951,-500.0,0.00010958,2]
[323687612,1714165839962,-238.51536162,0.00010958,2]
[323687613,1714165839972,-500.0,0.00010958,2]
[323687614,1714165839983,-500.0,0.00010958,2]
[323687615,1714165839994,-500.0,0.00010958,2]
[323687616,1714165840005,-500.0,0.00010958,2]
[323687617,1714165840015,-500.0,0.00010958,2]
[323687618,1714165840026,-500.0,0.00010958,2]
[323687620,1714165840037,-500.0,0.00010958,2]
[323687622,1714165840048,-500.0,0.00010958,2]
[323687624,1714165840059,-500.0,0.00010958,2]
[323687626,1714165840069,-500.0,0.00010958,2]
[323687629,1714165840080,-500.0,0.00010958,2]
[323687633,1714165840091,-500.0,0.00010958,2]
[323687635,1714165840103,-461.06518279,0.00010958,2]
[323687637,1714165840115,-500.0,0.00010958,2]
[323687639,1714165840126,-500.0,0.00010958,2]
[323687641,1714165840138,-500.0,0.00010958,2]
[323687643,1714165840149,-500.0,0.00010958,2]
[323687646,1714165840162,-500.0,0.00010958,2]
[323687648,1714165840173,-500.0,0.00010958,2]
[323687650,1714165840185,-500.0,0.00010958,2]
[323687652,1714165840196,-500.0,0.00010958,2]
[323687654,1714165840208,-500.0,0.00010958,2]
[323687656,1714165840218,-500.0,0.00010958,2]
[323687658,1714165840230,-500.0,0.00010958,2]
[323687660,1714165840240,-500.0,0.00010958,2]
[323687662,1714165840252,-500.0,0.00010958,2]
[323687664,1714165840264,-500.0,0.00010958,2]
[323687667,1714165840278,-500.0,0.00010958,2]
[323687669,1714165840289,-500.0,0.00010958,2]
[323687671,1714165840300,-500.0,0.00010958,2]
[323687673,1714165840310,-500.0,0.00010958,2]
[323687675,1714165840323,-500.0,0.00010958,2]
[323687677,1714165840335,-500.0,0.00010958,2]
[323687679,1714165840346,-609.49,0.00010958,2]
[323687682,1714165840359,-500.0,0.00010958,2]
[323687684,1714165840370,-500.0,0.00010958,2]
[323687686,1714165840381,-654.47,0.00010958,2]
[323687688,1714165840391,-500.0,0.00010958,2]
[323687690,1714165840401,-500.0,0.00010958,2]
[323687692,1714165840412,-500.0,0.00010958,2]
[323687695,1714165840423,-678.23,0.00010958,2]
[323687697,1714165840434,-244.74786915,0.00010958,2]
[323687699,1714165840446,-613.12,0.00010958,2]
[323687701,1714165840457,-500.4795884,0.00010958,2]
[323687703,1714165840467,-500.0,0.00010958,2]
[323687706,1714165840479,-646.77,0.00010958,2]
[323687708,1714165840490,-500.0,0.00010958,2]
[323687710,1714165840501,-500.0,0.00010958,2]
[323687712,1714165840514,-418.38,0.00010958,2]
[323687714,1714165840525,-500.0,0.00010958,2]
[323687716,1714165840536,-880.46,0.00010958,2]
[323687719,1714165840546,-530.65,0.00010958,2]
[323687720,1714165840557,-1006.3,0.00010958,2]
[323687721,1714165840568,-500.0,0.00010958,2]
[323687722,1714165840578,-500.0,0.00010958,2]